fUSD/lending_fUSD_20250923
["ID","MTS","AMOUNT","RATE_DAILY","PERIOD"]
[387138530,1758588743032,-703.54,0.0002356,2]
[387138531,1758588743047,-471.61,0.0002356,2]
[387138532,1758588743061,-698.95,0.0002356,2]
[387138533,1758588743076,-422.43,0.0002356,2]
[387138534,1758588743092,-665.52,0.0002356,2]
[387138535,1758588743109,-1517.07,0.0002356,2]
[387138536,1758588743123,-1290.57,0.0002356,2]
[387138537,1758588743138,-599.8,0.0002356,2]
[387138538,1758588743153,-864.51,0.0002356,2]
[387138539,1758588743167,-700.22,0.0002356,2]
[387138540,1758588743181,-578.19,0.0002356,2]
[387138541,1758588743195,-1270.12,0.0002356,2]
[387138542,1758588743211,-529.42,0.0002356,2]
[387138543,1758588743224,-790.42,0.0002356,2]
[387138544,1758588743240,-546.07,0.0002356,2]
[387138545,1758588743254,-796.17,0.0002356,2]
[387138546,1758588743268,-1797.38,0.0002356,2]
[387138547,1758588743285,-1179.29,0.0002356,2]
[387138548,1758588743301,-1067.68,0.0002356,2]
[387138549,1758588743316,-685.94,0.0002356,2]
[387138550,1758588743332,-400.0,0.0002356,2]
[387138551,1758588743346,-400.0,0.0002356,2]
[387138552,1758588743361,-4410.79,0.0002356,2]
[387138553,1758588743375,-400.0,0.0002356,2]
[387138554,1758588743388,-400.0,0.0002356,2]
[387138555,1758588743402,-635.32,0.0002356,2]
[387138556,1758588743416,-825.39,0.0002356,2]
[387138557,1758588743429,-1159.17,0.0002356,2]
[387138558,1758588743444,-3621.17,0.0002356,2]
[387138559,1758588743458,-536.01,0.0002356,2]
[387138560,1758588743473,-1555.92,0.0002356,2]
[387138561,1758588743487,-685.82,0.0002356,2]
[387138562,1758588743502,-287.8,0.0002356,2]
[387138563,1758588743515,-1688.59,0.0002356,2]
[387138564,1758588743528,-533.54,0.0002356,2]
[387138565,1758588743542,-3199.7,0.0002356,2]
[387138566,1758588743555,-400.0,0.0002356,2]
[387138567,1758588743570,-5083.46,0.0002356,2]
[387138568,1758588743584,-532.7,0.0002356,2]
[387138569,1758588743599,-726.03,0.0002356,2]
[387138570,1758588743613,-1692.11,0.0002356,2]
[387138571,1758588743627,-633.11,0.0002356,2]
[387138572,1758588743641,-411.61,0.0002356,2]
[387138573,1758588743656,-648.3,0.0002356,2]
[387138574,1758588743669,-857.03,0.0002356,2]
[387138575,1758588743687,-722.01,0.0002356,2]
[387138576,1758588743702,-1108.24,0.0002356,2]
[387138577,1758588743716,-464.86,0.0002356,2]
[387138578,1758588743732,-2367.09,0.0002356,2]
[387138579,1758588743747,-1636.84,0.0002356,2]
[387138580,1758588743761,-2136.91,0.0002356,2]
[387138581,1758588743778,-555.5,0.0002356,2]
[387138582,1758588743793,-914.0,0.0002356,2]
[387138583,1758588743808,-887.03,0.0002356,2]
[387138584,1758588743823,-4785.63,0.0002356,2]
[387138585,1758588743838,-1767.45,0.0002356,2]
[387138586,1758588743854,-1514.68,0.0002356,2]
[387138587,1758588743868,-553.9,0.0002356,2]
[387138588,1758588743883,-644.46,0.0002356,2]
[387138589,1758588743898,-434.59,0.0002356,2]
[387138590,1758588743914,-1093.45,0.0002356,2]
[387138591,1758588743928,-400.0,0.0002356,2]
[387138592,1758588743944,-2259.45,0.0002356,2]
[387138593,1758588743958,-1283.49,0.0002356,2]
[387138594,1758588743972,-579.07,0.0002356,2]
[387138595,1758588743987,-1392.04,0.0002356,2]
[387138596,1758588744002,-400.0,0.0002356,2]
[387138597,1758588744017,-586.63,0.0002356,2]
[387138598,1758588744033,-852.34,0.0002356,2]
[387138599,1758588744047,-400.0,0.0002356,2]
[387138600,1758588744063,-602.29,0.0002356,2]
[387138601,1758588744077,-2120.46,0.0002356,2]
[387138602,1758588744093,-400.0,0.0002356,2]
[387138603,1758588744108,-730.17,0.0002356,2]
[387138604,1758588744123,-713.11,0.0002356,2]
[387138605,1758588744138,-824.24,0.0002356,2]
[387138606,1758588744153,-2178.93,0.0002356,2]
[387138607,1758588744165,-563.68,0.0002356,2]
[387138608,1758588744174,-400.0,0.0002356,2]
[387138609,1758588744184,-624.27,0.0002356,2]
[387138610,1758588744193,-1279.8,0.0002356,2]
[387138611,1758588744481,-3500.0,0.0002356,2]
[387138612,1758588744519,-400.0,0.00023561,2]
[387138613,1758588744529,-400.0,0.00023561,2]
[387138614,1758588744539,-400.0,0.00023561,2]
[387138615,1758588744548,-400.0,0.00023561,2]
[387138616,1758588744557,-400.0,0.00023561,2]
[387138617,1758588744566,-400.0,0.00023561,2]
[387138618,1758588744576,-400.0,0.00023561,2]
[387138619,1758588744585,-400.0,0.00023561,2]
[387138620,1758588744594,-555.17,0.00023561,2]
[387138621,1758588744603,-491.16,0.00023561,2]
[387138622,1758588744612,-400.0,0.00023561,2]
[387138623,1758588744624,-400.0,0.00023561,2]
[387138624,1758588744634,-400.0,0.00023561,2]
[387138625,1758588744644,-416.06,0.00023561,2]
[387138626,1758588744653,-439.92,0.00023561,2]
[387138627,1758588744664,-400.0,0.00023561,2]
[387138628,1758588744674,-428.44,0.00023561,2]
[387138629,1758588744684,-353.22,0.00023561,2]
[387138630,1758588744693,-400.0,0.00023561,2]
[387138631,1758588744702,-400.0,0.00023561,2]
[387138632,1758588744712,-754.63,0.00023561,2]
[387138633,1758588744721,-403.38,0.00023561,2]
[387138634,1758588744731,-917.82,0.00023561,2]
[387138635,1758588744740,-400.0,0.00023561,2]
[387138636,1758588744750,-504.07,0.00023561,2]
[387138637,1758588744759,-535.33,0.00023561,2]
[387138638,1758588744769,-414.45,0.00023561,2]
[387138639,1758588744778,-597.93,0.00023561,2]
[387138640,1758588744787,-400.0,0.00023561,2]
[387138641,1758588744796,-599.79,0.00023561,2]
[387138642,1758588744806,-512.84,0.00023561,2]
[387138643,1758588744816,-830.32,0.00023561,2]
[387138644,1758588744825,-400.0,0.00023561,2]
[387138645,1758588744835,-400.0,0.00023561,2]
[387138646,1758588744844,-400.0,0.00023561,2]
[387138647,1758588744853,-877.74,0.00023561,2]
[387138648,1758588744863,-454.04,0.00023561,2]
[387138649,1758588744872,-944.31,0.00023561,2]
[387138650,1758588744881,-400.0,0.00023561,2]
[387138651,1758588744890,-866.7,0.00023561,2]
[387138652,1758588744899,-400.0,0.00023561,2]
[387138653,1758588744908,-983.28,0.00023561,2]
[387138654,1758588744917,-400.0,0.00023561,2]
[387138655,1758588744926,-722.94,0.00023561,2]
[387138656,1758588744935,-400.0,0.00023561,2]
[387138657,1758588744944,-542.91,0.00023561,2]
[387138658,1758588744953,-358.7908821,0.00023561,2]
[387138659,1758588744962,-559.02,0.00023561,2]
[387138660,1758588744971,-531.68,0.00023561,2]
[387138661,1758588744980,-400.0,0.00023561,2]
[387138662,1758588744989,-682.63,0.00023561,2]
[387138663,1758588744998,-461.64,0.00023561,2]
[387138664,1758588745007,-400.0,0.00023561,2]
[387138665,1758588745017,-671.51,0.00023561,2]
[387138666,1758588745026,-404.72,0.00023561,2]
[387138667,1758588745035,-607.71,0.00023561,2]
[387138668,1758588745045,-400.0,0.00023561,2]
[387138669,1758588745055,-400.0,0.00023561,2]
[387138670,1758588745064,-421.51,0.00023561,2]
[387138671,1758588745073,-965.94,0.00023561,2]
[387138672,1758588745083,-596.18,0.00023561,2]
[387138673,1758588745092,-400.0,0.00023561,2]
[387138674,1758588745101,-400.0,0.00023561,2]
[387138675,1758588745114,-417.6,0.00023561,2]
[387138676,1758588745123,-779.83,0.00023561,2]
[387138677,1758588745132,-400.0,0.00023561,2]
[387138678,1758588745141,-400.0,0.00023561,2]
[387138679,1758588745151,-720.23,0.00023561,2]
[387138680,1758588745160,-400.0,0.00023561,2]
[387138681,1758588745170,-432.08,0.00023561,2]
[387138682,1758588745180,-926.5,0.00023561,2]
[387138683,1758588745189,-453.42,0.00023561,2]
[387138684,1758588745200,-400.0,0.00023561,2]
[387138685,1758588745209,-499.27,0.00023561,2]
[387138686,1758588745218,-415.36,0.00023561,2]
[387138687,1758588745228,-400.0,0.00023561,2]
[387138688,1758588745237,-1064.17,0.00023561,2]
[387138689,1758588745246,-364.75,0.00023561,2]
[387138690,1758588745255,-400.0,0.00023561,2]
[387138691,1758588745264,-400.0,0.00023561,2]
[387138692,1758588745273,-428.67,0.00023561,2]
[387138693,1758588745283,-427.84,0.00023561,2]
[387138694,1758588745292,-400.0,0.00023561,2]
[387138695,1758588745301,-400.0,0.00023561,2]
[387138696,1758588745310,-715.39,0.00023561,2]
[387138697,1758588745320,-515.86,0.00023561,2]
[387138698,1758588745329,-400.0,0.00023561,2]
[387138699,1758588745339,-400.0,0.00023561,2]
[387138700,1758588745349,-1049.53,0.00023561,2]
[387138701,1758588745358,-400.0,0.00023561,2]
[387138702,1758588745372,-501.77,0.00023561,2]
[387138703,1758588745384,-669.85,0.00023561,2]
[387138704,1758588745393,-524.43,0.00023561,2]
[387138705,1758588745402,-480.73,0.00023561,2]
[387138706,1758588745412,-418.66,0.00023561,2]
[387138707,1758588745421,-400.0,0.00023561,2]
[387138708,1758588745430,-645.11,0.00023561,2]
[387138709,1758588745440,-3259.34,0.00023561,2]
[387138710,1758588745449,-400.0,0.00023561,2]
[387138711,1758588745458,-400.0,0.00023561,2]
[387138712,1758588745467,-819.08,0.00023561,2]
[387138713,1758588745477,-521.7,0.00023561,2]
[387138714,1758588745486,-527.41,0.00023561,2]
[387138715,1758588745503,-400.0,0.00023561,2]
[387138716,1758588745513,-707.11,0.00023561,2]
[387138717,1758588745522,-4823.52,0.00023561,2]
[387138718,1758588745532,-1811.93,0.00023561,2]
[387138719,1758588745542,-658.31,0.00023561,2]
[387138720,1758588745551,-1161.68,0.00023561,2]
[387138721,1758588745560,-751.69,0.00023561,2]
[387138722,1758588745570,-532.84,0.00023561,2]
[387138723,1758588745579,-760.3,0.00023561,2]
[387138724,1758588745589,-427.52,0.00023561,2]
[387138725,1758588745598,-400.0,0.00023561,2]
[387138726,1758588745608,-450.15,0.00023561,2]
[387138727,1758588745617,-500.42,0.00023561,2]
[387138728,1758588745626,-535.91,0.00023561,2]
[387138729,1758588745636,-440.64,0.00023561,2]
[387138730,1758588745645,-839.22,0.00023561,2]
[387138731,1758588745655,-1017.53,0.00023561,2]
[387138732,1758588745664,-400.0,0.00023561,2]
[387138733,1758588745674,-9183.84,0.00023561,2]
[387138734,1758588745684,-400.0,0.00023561,2]
[387138735,1758588745694,-451.23,0.00023561,2]
[387138736,1758588745703,-172.54,0.00023561,2]
[387138737,1758588745713,-894.16,0.00023561,2]
[387138738,1758588745722,-683.2,0.00023561,2]
[387138739,1758588745732,-1123.88,0.00023561,2]
[387138740,1758588745742,-406.45,0.00023561,2]
[387138741,1758588745751,-1005.19,0.00023561,2]
[387138742,1758588745760,-808.52,0.00023561,2]
[387138743,1758588745770,-1110.73,0.00023561,2]
[387138744,1758588745780,-400.0,0.00023561,2]
[387138745,1758588745789,-1205.76,0.00023561,2]
[387138746,1758588745799,-400.0,0.00023561,2]
[387138747,1758588745808,-741.22,0.00023561,2]
[387138748,1758588745818,-616.0,0.00023562,7]
[387138749,1758588745827,-2300.0,0.00023562,2]
[387138750,1758588745836,-700.0,0.00023562,2]
[387138751,1758588745845,-1100.0,0.00023562,2]
[387138752,1758588745854,-356.5,0.00023582,2]
[387138753,1758588745863,-1425.0,0.00023586,2]
[387138754,1758588745873,-3000.0,0.00023612,2]
[387138755,1758588745882,-168.0,0.00023612,2]
[387138756,1758588745891,-150.0,0.00023641,2]
[387138757,1758588745901,-150.0,0.00023656,2]
[387138758,1758588745910,-770.7718258,0.00023661,2]
[387138759,1758588745919,-192.01,0.0002367,2]
[387138760,1758588745928,-1000.0,0.00023695,2]
[387138761,1758588745937,-1425.0,0.00023704,2]
[387138762,1758588745947,-1000.0,0.00023705,2]
[387138763,1758588745955,-168.0,0.00023713,2]
[387138764,1758588745964,-1011.33,0.00023729,2]
[387138765,1758588745973,-9208.47,0.00023729,2]
[387138766,1758588745982,-600.0,0.00023754,2]
[387138767,1758588745992,-267.57787126,0.00023757,8]
[387138768,1758588746001,-4598.54950321,0.0002376,2]
[387138769,1758588746010,-8881.23539465,0.0002376,2]
[387138770,1758588746019,-800.0,0.0002377,2]
[387138771,1758588746028,-200.0,0.00023807,2]
[387138772,1758588746037,-257.25,0.00023828,2]
[387138773,1758588746047,-500.0,0.00023829,2]
[387138774,1758588746056,-1741.0,0.00023829,2]
[387138775,1758588746066,-496.0,0.00023829,2]
[387138776,1758588746076,-500.0,0.00023829,2]
[387138777,1758588746086,-539.0,0.00023829,2]
[387138778,1758588746096,-400.0,0.00023829,2]
[387138779,1758588746107,-553.8,0.00023829,2]
[387138780,1758588746117,-270.17547603,0.00023829,2]
[387138781,1758588746127,-739.8,0.00023829,2]
[387138782,1758588746137,-631.13,0.00023829,2]
[387138783,1758588746147,-400.0,0.00023829,2]
[387138784,1758588746156,-400.0,0.00023829,2]
[387138785,1758588746165,-400.0,0.00023829,2]
[387138786,1758588746174,-455.09,0.00023829,2]
[387138787,1758588746183,-1784.37119567,0.0002383,2]
[387138788,1758588746192,-1784.37119567,0.0002383,2]
[387138789,1758588746202,-400.0,0.00023832,2]
[387138790,1758588746211,-500.0,0.00023833,9]
[387138791,1758588746220,-500.0,0.00023833,9]
[387138792,1758588746229,-500.0,0.00023833,9]
[387138793,1758588746239,-500.0,0.00023833,9]
[387138794,1758588746248,-500.0,0.00023833,9]
[387138795,1758588746257,-500.0,0.00023833,9]
[387138796,1758588746266,-500.0,0.00023833,9]
[387138797,1758588746275,-500.0,0.00023833,9]
[387138798,1758588746284,-433.86,0.00023833,2]
[387138799,1758588746294,-400.0,0.00023833,2]
[387138800,1758588746304,-261.07,0.00023833,2]
[387138801,1758588746316,-400.0,0.00023833,2]
[387138802,1758588746326,-525.69,0.00023833,2]
[387138803,1758588746336,-417.58,0.00023833,2]
[387138804,1758588746347,-227.13,0.00023833,2]
[387138805,1758588746357,-400.0,0.00023833,2]
[387138806,1758588746367,-320.3,0.00023833,2]
[387138807,1758588746377,-400.0,0.00023833,2]
[387138808,1758588746389,-400.0,0.00023833,2]
[387138809,1758588746399,-729.73,0.00023833,2]
[387138810,1758588746410,-400.0,0.00023833,2]
[387138811,1758588746422,-1262.42,0.00023833,2]
[387138812,1758588746434,-402.51,0.00023833,2]
[387138813,1758588746443,-796.01,0.00023833,2]
[387138814,1758588746452,-431.35,0.00023833,2]
[387138815,1758588746462,-2335.81,0.00023833,2]
[387138816,1758588746471,-1029.46,0.00023833,2]
[387138817,1758588746480,-465.65,0.00023833,2]
[387138818,1758588746489,-400.0,0.00023833,2]
[387138819,1758588746499,-1832.67,0.00023833,2]
[387138820,1758588746513,-1616.25,0.00023833,2]
[387138821,1758588746529,-400.0,0.00023833,2]
[387138822,1758588746538,-400.0,0.00023833,2]
[387138823,1758588746547,-836.01,0.00023833,2]
[387138824,1758588746556,-400.0,0.00023833,2]
[387138825,1758588746565,-400.0,0.00023833,2]
[387138826,1758588746574,-1061.09,0.00023833,2]
[387138827,1758588746584,-522.0,0.00023833,2]
[387138828,1758588746593,-400.0,0.00023833,2]
[387138829,1758588746602,-3384.62,0.00023833,2]
[387138830,1758588746611,-500.0,0.00023833,9]
[387138831,1758588746621,-500.0,0.00023833,9]
[387138832,1758588746632,-500.0,0.00023833,9]
[387138833,1758588746641,-500.0,0.00023833,9]
[387138834,1758588746650,-500.0,0.00023833,9]
[387138835,1758588746660,-500.0,0.00023833,9]
[387138836,1758588746670,-500.0,0.00023833,9]
[387138837,1758588746679,-500.0,0.00023833,9]
[387138838,1758588746689,-2060.76,0.00023833,2]
[387138839,1758588746699,-530.11,0.00023833,2]
[387138840,1758588746708,-530.0,0.00023833,2]
[387138841,1758588746718,-922.13,0.00023833,2]
[387138842,1758588746727,-400.0,0.00023833,2]
[387138843,1758588746737,-754.65,0.00023833,2]
[387138844,1758588746746,-508.94,0.00023833,2]
[387138845,1758588746755,-400.0,0.00023833,2]
[387138846,1758588746765,-1169.65,0.00023833,2]
[387138847,1758588746774,-1903.352168,0.00023833,2]
[387138848,1758588746784,-400.0,0.00023834,2]
[387138849,1758588746794,-400.0,0.00023834,2]
[387138850,1758588746803,-400.0,0.00023834,2]
[387138851,1758588746812,-167.93,0.00023834,2]
[387138852,1758588746821,-674.13,0.00023834,2]
[387138853,1758588746832,-467.44,0.00023834,2]
[387138854,1758588746841,-490.65,0.00023834,2]
[387138855,1758588746851,-410.63,0.00023834,2]
[387138856,1758588746860,-750.91,0.00023834,2]
[387138857,1758588746870,-554.46,0.00023834,2]
[387138858,1758588746879,-544.47,0.00023834,2]
[387138859,1758588746889,-859.26,0.00023834,2]
[387138860,1758588746898,-400.0,0.00023834,2]
[387138861,1758588746908,-660.35,0.00023834,2]
[387138862,1758588746917,-410.37,0.00023834,2]
[387138863,1758588746927,-1016.77,0.00023834,2]
[387138864,1758588746936,-400.0,0.00023834,2]
[387138865,1758588746945,-484.13,0.00023834,2]
[387138866,1758588746955,-682.51,0.00023834,2]
[387138867,1758588746964,-400.0,0.00023834,2]
[387138868,1758588746973,-588.84,0.00023834,2]
[387138869,1758588746982,-527.41,0.00023834,2]
[387138870,1758588746991,-769.14,0.00023834,2]
[387138871,1758588747001,-400.0,0.00023834,2]
[387138872,1758588747010,-400.0,0.00023834,2]
[387138873,1758588747019,-450.01,0.00023834,2]
[387138874,1758588747029,-495.05,0.00023834,2]
[387138875,1758588747038,-400.0,0.00023834,2]
[387138876,1758588747048,-593.36,0.00023834,2]
[387138877,1758588747057,-445.15,0.00023834,2]
[387138878,1758588747067,-769.03,0.00023834,2]
[387138879,1758588747076,-537.23,0.00023834,2]
[387138880,1758588747086,-400.0,0.00023834,2]
[387138881,1758588747095,-400.0,0.00023834,2]
[387138882,1758588747106,-1440.81,0.00023834,2]
[387138883,1758588747118,-2249.616654,0.00023834,2]
[387138884,1758588747127,-400.0,0.00023834,2]
[387138885,1758588747136,-501.01,0.00023834,2]
[387138886,1758588747147,-493.6,0.00023834,2]
[387138887,1758588747156,-400.0,0.00023834,2]
[387138888,1758588747165,-969.65,0.00023834,2]
[387138889,1758588747175,-433.42,0.00023834,2]
[387138890,1758588747186,-577.66,0.00023834,2]
[387138891,1758588747198,-803.42,0.00023834,2]
[387138892,1758588747207,-651.06,0.00023834,2]
[387138893,1758588747217,-414.87,0.00023834,2]
[387138894,1758588747227,-602.08,0.00023834,2]
[387138895,1758588747237,-400.0,0.00023834,2]
[387138896,1758588747247,-400.0,0.00023834,2]
[387138897,1758588747257,-697.68,0.00023834,2]
[387138898,1758588747267,-1169.47,0.00023834,2]
[387138899,1758588747277,-400.0,0.00023834,2]
[387138900,1758588747287,-514.36,0.00023834,2]
[387138901,1758588747297,-440.26,0.00023834,2]
[387138902,1758588747307,-593.88,0.00023834,2]
[387138903,1758588747317,-1060.97,0.00023834,2]
[387138904,1758588747327,-743.55,0.00023834,2]
[387138905,1758588747338,-620.51,0.00023834,2]
[387138906,1758588747348,-400.0,0.00023834,2]
[387138907,1758588747358,-695.32,0.00023834,2]
[387138908,1758588747368,-447.81,0.00023834,2]
[387138909,1758588747377,-909.99,0.00023834,2]
[387138910,1758588747386,-400.0,0.00023834,2]
[387138911,1758588747395,-609.54,0.00023834,2]
[387138912,1758588747405,-400.0,0.00023834,2]
[387138913,1758588747415,-503.16,0.00023834,2]
[387138914,1758588747425,-652.42,0.00023834,2]
[387138915,1758588747435,-1926.15,0.00023834,2]
[387138916,1758588747445,-808.98,0.00023834,2]
[387138917,1758588747457,-997.93,0.00023834,2]
[387138918,1758588747466,-2763.9,0.00023834,2]
[387138919,1758588747475,-822.69,0.00023834,2]
[387138920,1758588747485,-1231.62,0.00023834,2]
[387138921,1758588747495,-435.88,0.00023834,2]
[387138922,1758588747504,-535.84,0.00023834,2]
[387138923,1758588747514,-400.0,0.00023834,2]
[387138924,1758588747523,-1082.02,0.00023834,2]
[387138925,1758588747533,-703.54,0.00023834,2]
[387138926,1758588747542,-471.61,0.00023834,2]
[387138927,1758588747552,-698.95,0.00023834,2]
[387138928,1758588747562,-422.43,0.00023834,2]
[387138929,1758588747572,-665.52,0.00023834,2]
[387138930,1758588747581,-1517.07,0.00023834,2]
[387138931,1758588747591,-1290.57,0.00023834,2]
[387138932,1758588747601,-599.8,0.00023834,2]
[387138933,1758588747610,-864.51,0.00023834,2]
[387138934,1758588747620,-700.22,0.00023834,2]
[387138935,1758588747630,-578.19,0.00023834,2]
[387138936,1758588747639,-1270.12,0.00023834,2]
[387138937,1758588747650,-529.42,0.00023834,2]
[387138938,1758588747659,-790.42,0.00023834,2]
[387138939,1758588747669,-546.07,0.00023834,2]
[387138940,1758588747679,-796.17,0.00023834,2]
[387138941,1758588747688,-1797.38,0.00023834,2]
[387138942,1758588747700,-1179.29,0.00023834,2]
[387138943,1758588747709,-1067.68,0.00023834,2]
[387138944,1758588747916,-685.94,0.00023834,2]
[387138945,1758588747942,-400.0,0.00023834,2]
[387138946,1758588747955,-400.0,0.00023834,2]
[387138947,1758588747965,-4410.79,0.00023834,2]
[387138948,1758588747974,-364.0,0.00023834,2]
[387138949,1758588747984,-400.0,0.00023834,2]
[387138950,1758588747993,-635.32,0.00023834,2]
[387138951,1758588748003,-825.39,0.00023834,2]
[387138952,1758588748012,-1159.17,0.00023834,2]
[387138953,1758588748021,-3621.17,0.00023834,2]
[387138954,1758588748031,-536.01,0.00023834,2]
[387138955,1758588748040,-1555.92,0.00023834,2]
[387138956,1758588748049,-685.82,0.00023834,2]
[387138957,1758588748059,-533.54,0.00023834,2]
[387138958,1758588748068,-3199.7,0.00023834,2]
[387138959,1758588748077,-400.0,0.00023834,2]
[387138960,1758588748087,-5083.46,0.00023834,2]
[387138961,1758588748096,-1688.59,0.00023834,2]
[387138962,1758588748106,-532.7,0.00023834,2]
[387138963,1758588748118,-726.03,0.00023834,2]
[387138964,1758588748127,-1692.11,0.00023834,2]
[387138965,1758588748137,-633.11,0.00023834,2]
[387138966,1758588748146,-411.61,0.00023834,2]
[387138967,1758588748155,-648.3,0.00023834,2]
[387138968,1758588748165,-857.03,0.00023834,2]
[387138969,1758588748175,-722.01,0.00023834,2]
[387138970,1758588748184,-1108.24,0.00023834,2]
[387138971,1758588748193,-464.86,0.00023834,2]
[387138972,1758588748204,-2367.09,0.00023834,2]
[387138973,1758588748213,-1636.84,0.00023834,2]
[387138974,1758588748222,-2136.91,0.00023834,2]
[387138975,1758588748231,-555.5,0.00023834,2]
[387138976,1758588748240,-914.0,0.00023834,2]
[387138977,1758588748250,-887.03,0.00023834,2]
[387138978,1758588748260,-4785.63,0.00023834,2]
[387138979,1758588748270,-1767.45,0.00023834,2]
[387138980,1758588748279,-1514.68,0.00023834,2]
[387138981,1758588748289,-553.9,0.00023834,2]
[387138982,1758588748298,-644.46,0.00023834,2]
[387138983,1758588748308,-434.59,0.00023834,2]
[387138984,1758588748317,-1093.45,0.00023834,2]
[387138985,1758588748326,-400.0,0.00023834,2]
[387138986,1758588748335,-2259.45,0.00023834,2]
[387138987,1758588748344,-1283.49,0.00023834,2]
[387138988,1758588748356,-579.07,0.00023834,2]
[387138989,1758588748365,-1392.04,0.00023834,2]
[387138990,1758588748375,-400.0,0.00023834,2]
[387138991,1758588748385,-586.63,0.00023834,2]
[387138992,1758588748394,-852.34,0.00023834,2]
[387138993,1758588748404,-400.0,0.00023834,2]
[387138994,1758588748414,-602.29,0.00023834,2]
[387138995,1758588748429,-2120.46,0.00023834,2]
[387138996,1758588748439,-400.0,0.00023834,2]
[387138997,1758588748450,-730.17,0.00023834,2]
[387138998,1758588748460,-713.11,0.00023834,2]
[387138999,1758588748469,-824.24,0.00023834,2]
[387139000,1758588748478,-2178.93,0.00023834,2]
[387139001,1758588748488,-563.68,0.00023834,2]
[387139002,1758588748498,-400.0,0.00023834,2]
[387139003,1758588748508,-624.27,0.00023834,2]
[387139004,1758588748519,-1279.8,0.00023834,2]
[387139005,1758588748528,-400.0,0.00023835,2]
[387139006,1758588748540,-400.0,0.00023835,2]
[387139007,1758588748551,-400.0,0.00023835,2]
[387139008,1758588748562,-400.0,0.00023835,2]
[387139009,1758588748572,-400.0,0.00023835,2]
[387139010,1758588748583,-400.0,0.00023835,2]
[387139011,1758588748594,-400.0,0.00023835,2]
[387139012,1758588748604,-400.0,0.00023835,2]
[387139013,1758588748614,-555.17,0.00023835,2]
[387139014,1758588748624,-491.16,0.00023835,2]
[387139015,1758588748634,-400.0,0.00023835,2]
[387139016,1758588748645,-400.0,0.00023835,2]
[387139017,1758588748655,-206.72,0.00023835,2]
[387139018,1758588748665,-416.06,0.00023835,2]
[387139019,1758588748674,-439.92,0.00023835,2]
[387139020,1758588748684,-400.0,0.00023835,2]
[387139021,1758588748694,-428.44,0.00023835,2]
[387139022,1758588748704,-396.39,0.00023835,2]
[387139023,1758588748714,-539.09944184,0.00023835,2]
[387139024,1758588748725,-754.63,0.00023835,2]
[387139025,1758588748734,-403.38,0.00023835,2]
[387139026,1758588748744,-917.82,0.00023835,2]
[387139027,1758588748755,-400.0,0.00023835,2]
[387139028,1758588748765,-504.07,0.00023835,2]
[387139029,1758588748775,-535.33,0.00023835,2]